fUST/lending_fUST_20240115
["ID","MTS","AMOUNT","RATE_DAILY","PERIOD"]
[311611111,1705265442007,-500.0,0.00027397,2]
[311611113,1705265442016,-500.0,0.00027397,2]
[311611115,1705265442025,-500.0,0.00027397,2]
[311611117,1705265442034,-320.01305771,0.00027397,2]
[311611119,1705265442043,-500.0,0.00027397,2]
[311611121,1705265442052,-500.0,0.00027397,2]
[311611123,1705265442062,-500.0,0.00027397,2]
[311611125,1705265442071,-500.0,0.00027397,2]
[311611127,1705265442080,-500.0,0.00027397,2]
[311611129,1705265442090,-500.0,0.00027397,2]
[311611131,1705265442099,-620.59724494,0.00027397,2]
[311611133,1705265442108,-500.0,0.00027397,2]
[311611135,1705265442117,-500.0,0.00027397,2]
[311611137,1705265442126,-831.39,0.00027397,2]
[311611139,1705265442135,-500.0,0.00027397,2]
[311611141,1705265442143,-500.0,0.00027397,2]
[311611143,1705265442153,-500.0,0.00027397,2]
[311611145,1705265442162,-500.0,0.00027397,2]
[311611147,1705265442171,-577.38270895,0.00027397,2]
[311611149,1705265442180,-500.0,0.00027397,2]
[311611151,1705265442189,-500.0,0.00027397,2]
[311611153,1705265442198,-500.0,0.00027397,2]
[311611155,1705265442207,-500.0,0.00027397,2]
[311611157,1705265442215,-500.0,0.00027397,2]
[311611159,1705265442224,-500.0,0.00027397,2]
[311611161,1705265442233,-200.29082634,0.00027397,2]
[311611163,1705265442242,-718.6,0.00027397,2]
[311611165,1705265442251,-202.9357647,0.00027397,2]
[311611167,1705265442260,-500.0,0.00027397,2]
[311611168,1705265442269,-500.0,0.00027397,2]
[311611170,1705265442279,-500.0,0.00027397,2]
[311611172,1705265442288,-500.0,0.00027397,2]
[311611174,1705265442297,-500.0,0.00027397,2]
[311611176,1705265442305,-500.0,0.00027397,2]
[311611178,1705265442314,-500.0,0.00027397,2]
[311611180,1705265442324,-500.0,0.00027397,2]
[311611182,1705265442333,-500.0,0.00027397,2]
[311611184,1705265442343,-500.0,0.00027397,2]
[311611186,1705265442352,-500.0,0.00027397,2]
[311611188,1705265442361,-500.0,0.00027397,2]
[311611190,1705265442369,-500.0,0.00027397,2]
[311611192,1705265442378,-500.0,0.00027397,2]
[311611194,1705265442387,-500.0,0.00027397,2]
[311611196,1705265442397,-509.40069482,0.00027397,2]
[311611198,1705265442406,-500.0,0.00027397,2]
[311611200,1705265442415,-655.30601003,0.00027397,2]
[311611202,1705265442424,-6475.34296448,0.000274,2]
[311611204,1705265442432,-500.0,0.00027534,2]
[311611206,1705265442442,-35653.01739407,0.00027571,2]
[311611208,1705265442451,-530.69,0.00027668,2]
[311611210,1705265442459,-500.0,0.0002767,2]
[311611212,1705265442469,-500.0,0.0002767,2]
[311611214,1705265442478,-500.0,0.0002767,2]
[311611216,1705265442487,-530.69,0.0002767,2]
[311611218,1705265442496,-530.69,0.0002767,2]
[311611220,1705265442506,-530.69,0.0002767,2]
[311611223,1705265442515,-530.69,0.0002767,2]
[311611224,1705265442524,-567.88766866,0.0002767,2]
[311611226,1705265442533,-307.04456893,0.0002767,2]
[311611229,1705265442543,-372.78377968,0.0002767,2]
[311611230,1705265442552,-500.0,0.0002767,2]
[311611233,1705265442561,-500.0,0.0002767,2]
[311611235,1705265442570,-206.17368925,0.0002767,2]
[311611237,1705265442579,-421.24233698,0.0002767,2]
[311611239,1705265442588,-167.39541539,0.0002767,2]
[311611248,1705265442669,-186.45866147,0.0002767,2]
[311611250,1705265442678,-500.0,0.0002767,2]
[311611253,1705265442688,-500.0,0.0002767,2]
[311611255,1705265442699,-500.0,0.0002767,2]
[311611256,1705265442710,-1184.543421,0.00027671,2]
[311611259,1705265442719,-1184.543421,0.00027671,2]
[311611262,1705265442729,-2445.876121,0.00027671,2]
[311611265,1705265442743,-2445.876121,0.00027671,2]
[311611267,1705265442754,-151.0,0.00027671,2]
[311611270,1705265442763,-151.0,0.00027671,2]
[311611273,1705265442772,-500.0,0.00027671,2]
[311611276,1705265442783,-500.0,0.00027671,2]
[311611278,1705265442793,-500.0,0.00027671,2]
[311611279,1705265442802,-500.0,0.00027671,2]
[311611281,1705265442811,-500.0,0.00027671,2]
[311611283,1705265442820,-500.0,0.00027671,2]
[311611285,1705265442829,-500.0,0.00027671,2]
[311611287,1705265442837,-500.0,0.00027671,2]
[311611290,1705265442846,-500.0,0.00027671,2]
[311611293,1705265442855,-500.0,0.00027671,2]
[311611296,1705265442865,-339.50865496,0.00027671,2]
[311611299,1705265442874,-500.0,0.00027671,2]
[311611302,1705265442883,-1428.3,0.00027671,2]
[311611304,1705265442892,-500.0,0.00027671,2]
[311611307,1705265442900,-500.0,0.00027671,2]
[311611310,1705265442912,-500.0,0.00027671,2]
[311611313,1705265442921,-344.50977953,0.00027671,2]
[311611316,1705265442929,-500.0,0.00027671,2]
[311611318,1705265442938,-500.0,0.00027671,2]
[311611320,1705265442947,-500.0,0.00027671,2]
[311611322,1705265442957,-500.0,0.00027671,2]
[311611324,1705265442966,-225.46911807,0.00027671,2]
[311611326,1705265442975,-500.0,0.00027671,2]
[311611328,1705265442984,-500.0,0.00027671,2]
[311611330,1705265442993,-662.55,0.00027671,2]
[311611332,1705265443002,-500.0,0.00027671,2]
[311611334,1705265443011,-500.0,0.00027671,2]
[311611336,1705265443020,-500.0,0.00027671,2]
[311611338,1705265443029,-325.550196,0.00027671,2]
[311611340,1705265443038,-512.92548497,0.00027671,2]
[311611342,1705265443047,-500.0,0.00027671,2]
[311611345,1705265443057,-500.0,0.00027671,2]
[311611346,1705265443066,-425.82178515,0.00027671,2]
[311611349,1705265443076,-500.0,0.00027671,2]
[311611350,1705265443085,-500.0,0.00027671,2]
[311611353,1705265443097,-1214.69,0.00027671,2]
[311611354,1705265443106,-500.0,0.00027671,2]
[311611356,1705265443115,-500.0,0.00027671,2]
[311611359,1705265443125,-500.0,0.00027671,2]
[311611361,1705265443134,-583.57,0.00027671,2]
[311611362,1705265443143,-1719.71,0.00027671,2]
[311611364,1705265443153,-878.83,0.00027671,2]
[311611366,1705265443162,-500.0,0.00027671,2]
[311611369,1705265443171,-500.0,0.00027671,2]
[311611370,1705265443181,-500.0,0.00027671,2]
[311611372,1705265443190,-500.0,0.00027671,2]
[311611374,1705265443199,-605.78919628,0.00027671,2]
[311611376,1705265443208,-503.33,0.00027671,2]
[311611378,1705265443217,-528.99719746,0.00027671,2]
[311611380,1705265443226,-500.0,0.00027671,2]
[311611382,1705265443235,-1000.0,0.00027671,2]
[311611384,1705265443244,-500.0,0.00027671,2]
[311611386,1705265443253,-504.32,0.00027671,2]
[311611388,1705265443262,-500.0,0.00027671,2]
[311611390,1705265443271,-500.0,0.00027671,2]
[311611392,1705265443284,-500.0,0.00027671,2]
[311611394,1705265443293,-500.0,0.00027671,2]
[311611396,1705265443302,-500.0,0.00027671,2]
[311611398,1705265443311,-500.0,0.00027671,2]
[311611400,1705265443320,-500.0,0.00027671,2]
[311611402,1705265443329,-860.02,0.00027671,2]
[311611404,1705265443340,-500.0,0.00027671,2]
[311611406,1705265443350,-500.0,0.00027671,2]
[311611408,1705265443358,-500.0,0.00027671,2]
[311611410,1705265443368,-500.0,0.00027671,2]
[311611412,1705265443377,-500.0,0.00027671,2]
[311611413,1705265443386,-500.0,0.00027671,2]
[311611415,1705265443395,-224.57764706,0.00027671,2]
[311611417,1705265443404,-500.0,0.00027671,2]
[311611419,1705265443413,-500.0,0.00027671,2]
[311611421,1705265443423,-500.0,0.00027671,2]
[311611423,1705265443432,-661.29,0.00027671,2]
[311611425,1705265443441,-500.0,0.00027671,2]
[311611427,1705265443450,-500.0,0.00027671,2]
[311611429,1705265443459,-500.0,0.00027671,2]
[311611431,1705265443468,-500.0,0.00027671,2]
[311611433,1705265443477,-500.0,0.00027671,2]
[311611435,1705265443486,-4550.62,0.00027671,2]
[311611437,1705265443495,-500.0,0.00027671,2]
[311611439,1705265443504,-500.0,0.00027671,2]
[311611441,1705265443513,-454.73107322,0.00027671,2]
[311611443,1705265443522,-500.0,0.00027671,2]
[311611445,1705265443531,-500.0,0.00027671,2]
[311611447,1705265443541,-500.0,0.00027671,2]
[311611449,1705265443550,-500.0,0.00027671,2]
[311611451,1705265443559,-500.0,0.00027671,2]
[311611453,1705265443568,-500.0,0.00027671,2]
[311611455,1705265443577,-500.0,0.00027671,2]
[311611457,1705265443586,-500.0,0.00027671,2]
[311611459,1705265443597,-1404.93,0.00027671,2]
[311611461,1705265443606,-500.0,0.00027671,2]
[311611463,1705265443615,-500.0,0.00027671,2]
[311611465,1705265443624,-500.0,0.00027671,2]
[311611467,1705265443632,-500.0,0.00027671,2]
[311611469,1705265443641,-500.0,0.00027671,2]
[311611471,1705265443650,-500.0,0.00027671,2]
[311611472,1705265443659,-500.0,0.00027671,2]
[311611474,1705265443668,-500.49527847,0.00027671,2]
[311611476,1705265443677,-500.0,0.00027671,2]
[311611478,1705265443686,-500.0,0.00027671,2]
[311611480,1705265443695,-500.0,0.00027671,2]
[311611482,1705265443703,-500.0,0.00027671,2]
[311611484,1705265443712,-500.0,0.00027671,2]
[311611486,1705265443723,-615.79197859,0.00027671,2]
[311611488,1705265443732,-500.0,0.00027671,2]
[311611490,1705265443741,-500.0,0.00027671,2]
[311611491,1705265443750,-1902.59,0.00027671,2]
[311611492,1705265443759,-500.0,0.00027671,2]
[311611493,1705265443769,-500.0,0.00027671,2]
[311611494,1705265443778,-500.0,0.00027671,2]
[311611495,1705265443787,-2688.55,0.00027671,2]
[311611496,1705265443797,-753.8,0.00027671,2]
[311611497,1705265443810,-500.0,0.00027671,2]
[311611498,1705265443819,-529.08421022,0.00027671,2]
[311611499,1705265443828,-1223.49,0.00027671,2]
[311611500,1705265443837,-500.0,0.00027671,2]
[311611501,1705265443845,-500.0,0.00027671,2]
[311611502,1705265443855,-500.0,0.00027671,2]
[311611503,1705265443864,-500.0,0.00027671,2]
[311611504,1705265443873,-2781.8,0.00027671,2]
[311611505,1705265443882,-614.02729468,0.00027671,2]
[311611506,1705265443892,-1509.52,0.00027671,2]
[311611507,1705265443901,-500.0,0.00027671,2]
[311611508,1705265443910,-500.0,0.00027671,2]
[311611509,1705265443919,-500.0,0.00027671,2]
[311611510,1705265443928,-986.56,0.00027671,2]
[311611512,1705265443936,-500.0,0.00027671,2]
[311611514,1705265443945,-500.0,0.00027671,2]
[311611516,1705265443954,-500.0,0.00027671,2]
[311611518,1705265443963,-500.0,0.00027671,2]
[311611520,1705265443971,-500.0,0.00027671,2]
[311611522,1705265443981,-500.0,0.00027671,2]
[311611524,1705265443990,-500.0,0.00027671,2]
[311611526,1705265443999,-1574.42,0.00027671,2]
[311611528,1705265444008,-500.0,0.00027671,2]
[311611530,1705265444017,-817.78,0.00027671,2]
[311611532,1705265444026,-466.07673513,0.00027671,2]
[311611534,1705265444034,-500.0,0.00027671,2]
[311611536,1705265444044,-1229.13,0.00027671,2]
[311611538,1705265444053,-500.0,0.00027671,2]
[311611540,1705265444061,-500.0,0.00027671,2]
[311611542,1705265444071,-789.88,0.00027671,2]
[311611544,1705265444080,-646.78874454,0.00027671,2]
[311611546,1705265444090,-7667.31,0.00027671,2]
[311611548,1705265444099,-500.0,0.00027671,2]
[311611550,1705265444111,-500.0,0.00027671,2]
[311611551,1705265444120,-500.0,0.00027671,2]
[311611553,1705265444129,-500.0,0.00027671,2]
[311611555,1705265444137,-500.0,0.00027671,2]
[311611557,1705265444146,-500.0,0.00027671,2]
[311611559,1705265444155,-500.0,0.00027671,2]
[311611561,1705265444164,-1392.78,0.00027671,2]
[311611563,1705265444172,-500.0,0.00027671,2]
[311611565,1705265444181,-500.0,0.00027671,2]
[311611567,1705265444191,-500.0,0.00027671,2]
[311611569,1705265444200,-519.99430236,0.00027671,2]
[311611571,1705265444209,-500.32041924,0.00027671,2]
[311611573,1705265444217,-500.0,0.00027671,2]
[311611575,1705265444226,-500.0,0.00027671,2]
[311611577,1705265444235,-500.0,0.00027671,2]
[311611579,1705265444244,-500.0,0.00027671,2]
[311611581,1705265444253,-500.0,0.00027671,2]
[311611583,1705265444262,-495.43129305,0.00027671,2]
[311611584,1705265444271,-1115.33,0.00027671,2]
[311611586,1705265444281,-500.0,0.00027671,2]
[311611587,1705265444290,-1632.39,0.00027671,2]
[311611589,1705265444299,-500.0,0.00027671,2]
[311611591,1705265444308,-500.0,0.00027671,2]
[311611593,1705265444317,-500.0,0.00027671,2]
[311611595,1705265444326,-500.0,0.00027671,2]
[311611597,1705265444335,-500.0,0.00027671,2]
[311611598,1705265444347,-500.0,0.00027671,2]
[311611607,1705265444425,-500.0,0.00027671,2]
[311611609,1705265444435,-500.0,0.00027671,2]
[311611611,1705265444446,-500.0,0.00027671,2]
[311611613,1705265444455,-500.0,0.00027671,2]
[311611615,1705265444464,-1723.04,0.00027671,2]
[311611617,1705265444473,-500.0,0.00027671,2]
[311611619,1705265444482,-1698.92,0.00027671,2]
[311611621,1705265444492,-500.0,0.00027671,2]
[311611623,1705265444501,-500.0,0.00027671,2]
[311611625,1705265444510,-500.0,0.00027671,2]
[311611626,1705265444519,-187.83149866,0.00027671,2]
[311611628,1705265444528,-500.0,0.00027671,2]
[311611630,1705265444537,-1000.0,0.00027671,2]
[311611632,1705265444546,-3330.12,0.00027671,2]
[311611634,1705265444556,-500.0,0.00027671,2]
[311611636,1705265444565,-500.0,0.00027671,2]
[311611638,1705265444575,-880.01,0.00027671,2]
[311611640,1705265444584,-7325.02,0.00027671,2]
[311611642,1705265444596,-500.0,0.00027671,2]
[311611644,1705265444605,-20891.32,0.00027671,2]
[311611646,1705265444614,-500.0,0.00027671,2]
[311611648,1705265444623,-646.54670166,0.00027671,2]
[311611649,1705265444633,-500.0,0.00027671,2]
[311611651,1705265444642,-500.0,0.00027671,2]
[311611653,1705265444650,-9190.17,0.00027671,2]
[311611655,1705265444659,-500.0,0.00027671,2]
[311611657,1705265444669,-566.43077222,0.00027671,2]
[311611659,1705265444678,-500.0,0.00027671,2]
[311611661,1705265444687,-500.0,0.00027671,2]
[311611663,1705265444696,-836.49,0.00027671,2]
[311611665,1705265444705,-308.24075342,0.00027671,2]
[311611667,1705265444715,-500.0,0.00027671,2]
[311611669,1705265444728,-500.0,0.00027671,2]
[311611671,1705265444736,-526.73,0.00027671,2]
[311611673,1705265444745,-500.0,0.00027671,2]
[311611675,1705265444755,-500.0,0.00027671,2]
[311611677,1705265444763,-522.17,0.00027671,2]
[311611679,1705265444772,-500.0,0.00027671,2]
[311611680,1705265444782,-500.0,0.00027671,2]
[311611682,1705265444791,-500.0,0.00027671,2]
[311611684,1705265444799,-27844.96,0.00027671,2]
[311611686,1705265444809,-528.45,0.00027671,2]
[311611688,1705265444818,-500.0,0.00027671,2]
[311611690,1705265444827,-2509.52,0.00027671,2]
[311611692,1705265444836,-500.0,0.00027671,2]
[311611694,1705265444846,-1033.57,0.00027671,2]
[311611696,1705265444855,-7326.83,0.00027671,2]
[311611698,1705265444864,-601.89,0.00027671,2]
[311611700,1705265444873,-500.0,0.00027671,2]
[311611702,1705265444882,-500.0,0.00027671,2]
[311611704,1705265444891,-500.0,0.00027671,2]
[311611706,1705265444900,-500.0,0.00027671,2]
[311611708,1705265444908,-218.24059673,0.00027671,2]
[311611710,1705265444917,-500.0,0.00027671,2]
[311611711,1705265444926,-376.85988352,0.00027671,2]
[311611713,1705265444935,-500.0,0.00027671,2]
[311611715,1705265444943,-500.0,0.00027671,2]
[311611717,1705265444952,-500.0,0.00027671,2]
[311611719,1705265444961,-500.0,0.00027671,2]
[311611721,1705265444970,-500.0,0.00027671,2]
[311611723,1705265444979,-831.39,0.00027671,2]
[311611725,1705265444988,-500.0,0.00027671,2]
[311611727,1705265444998,-500.0,0.00027671,2]
[311611729,1705265445007,-500.0,0.00027671,2]
[311611731,1705265445016,-500.0,0.00027671,2]
[311611733,1705265445025,-500.0,0.00027671,2]
[311611735,1705265445033,-500.0,0.00027671,2]
[311611737,1705265445042,-531.03698778,0.00027671,2]
[311611739,1705265445051,-718.6,0.00027671,2]
[311611741,1705265445060,-500.0,0.00027671,2]
[311611743,1705265445069,-500.0,0.00027671,2]
[311611745,1705265445078,-500.0,0.00027671,2]
[311611747,1705265445087,-500.0,0.00027671,2]
[311611749,1705265445097,-500.0,0.00027671,2]
[311611750,1705265445106,-500.0,0.00027671,2]
[311611752,1705265445115,-500.0,0.00027671,2]
[311611754,1705265445123,-500.0,0.00027671,2]
[311611756,1705265445132,-500.0,0.00027671,2]
[311611758,1705265445141,-359.68166785,0.00027671,2]
[311611760,1705265445150,-500.0,0.00027671,2]
[311611761,1705265445159,-500.0,0.00027671,2]
[311611763,1705265445168,-509.48319526,0.00027671,2]
[311611765,1705265445177,-688.18928243,0.000277,2]
[311611767,1705265445186,-153.1880119,0.000277,2]
[311611769,1705265445194,-441.8574589,0.000277,2]
[311611771,1705265445203,-153.2699126,0.000277,2]
[311611773,1705265445212,-154.1994419,0.000277,2]
[311611775,1705265445221,-154.6228574,0.000277,2]
[311611777,1705265445230,-620.40168789,0.0002772,2]
[311611778,1705265445239,-500.0,0.00027808,2]
[311611780,1705265445248,-530.69,0.00027844,2]
[311611782,1705265445257,-530.69,0.00027944,2]
[311611784,1705265445266,-530.69,0.00027944,2]
[311611786,1705265445275,-530.69,0.00027944,2]
[311611788,1705265445284,-530.69,0.00027944,2]
[311611790,1705265445293,-500.0,0.00027944,4]
[311611792,1705265445303,-477.39420188,0.00027944,4]
[311611794,1705265445312,-470.4,0.00027944,4]
[311611796,1705265445321,-496.72617691,0.00027944,4]
[311611798,1705265445329,-258.11712698,0.00027944,4]
[311611800,1705265445340,-1184.543421,0.00027945,2]
[311611802,1705265445349,-1184.543421,0.00027945,2]
[311611803,1705265445358,-2445.876121,0.00027945,2]
[311611805,1705265445367,-2445.876121,0.00027945,2]
[311611807,1705265445376,-2445.876121,0.00027945,2]
[311611809,1705265445386,-2445.876121,0.00027945,2]
[311611811,1705265445395,-151.0,0.00027945,2]
[311611813,1705265445404,-151.0,0.00027945,2]
[311611815,1705265445413,-151.0,0.00027945,2]
[311611817,1705265445422,-151.0,0.00027945,2]
[311611819,1705265445431,-500.0,0.00027945,2]
[311611821,1705265445441,-500.0,0.00027945,2]
[311611823,1705265445450,-500.0,0.00027945,2]
[311611824,1705265445459,-500.0,0.00027945,2]
[311611826,1705265445468,-500.0,0.00027945,2]
[311611828,1705265445477,-500.0,0.00027945,2]
[311611830,1705265445486,-500.0,0.00027945,2]
[311611832,1705265445495,-500.0,0.00027945,2]
[311611834,1705265445504,-500.0,0.00027945,2]
[311611836,1705265445513,-1428.3,0.00027945,2]
[311611838,1705265445522,-500.0,0.00027945,2]
[311611840,1705265445531,-500.0,0.00027945,2]
[311611842,1705265445540,-589.61761874,0.00027945,2]
[311611844,1705265445549,-500.0,0.00027945,2]
[311611846,1705265445558,-500.0,0.00027945,2]
[311611848,1705265445567,-500.0,0.00027945,2]
[311611849,1705265445576,-500.0,0.00027945,2]
[311611851,1705265445585,-662.55,0.00027945,2]
[311611853,1705265445595,-500.0,0.00027945,2]
[311611855,1705265445604,-252.49581214,0.00027945,2]
[311611857,1705265445613,-500.0,0.00027945,2]
[311611859,1705265445622,-500.0,0.00027945,2]
[311611861,1705265445631,-500.0,0.00027945,2]
[311611863,1705265445640,-1214.69,0.00027945,2]
[311611865,1705265445649,-500.0,0.00027945,2]
[311611867,1705265445658,-500.0,0.00027945,2]
[311611868,1705265445666,-583.57,0.00027945,2]
[311611870,1705265445675,-1719.71,0.00027945,2]
[311611872,1705265445684,-878.83,0.00027945,2]
[311611874,1705265445694,-500.0,0.00027945,2]
[311611876,1705265445703,-515.26628988,0.00027945,2]
[311611878,1705265445712,-500.0,0.00027945,2]
[311611880,1705265445723,-500.0,0.00027945,2]
[311611882,1705265445732,-503.33,0.00027945,2]
[311611884,1705265445742,-443.16856451,0.00027945,2]
[311611886,1705265445751,-500.0,0.00027945,2]
[311611888,1705265445761,-504.32,0.00027945,2]
[311611890,1705265445770,-500.0,0.00027945,2]
[311611892,1705265445780,-500.0,0.00027945,2]
[311611894,1705265445789,-167.07286369,0.00027945,2]
[311611896,1705265445799,-201.42102991,0.00027945,2]
[311611898,1705265445809,-500.0,0.00027945,2]
[311611900,1705265445818,-500.0,0.00027945,2]
[311611902,1705265445827,-170.11902549,0.00027945,2]
[311611904,1705265445836,-860.02,0.00027945,2]
[311611906,1705265445846,-500.0,0.00027945,2]
[311611907,1705265445855,-500.0,0.00027945,2]
[311611909,1705265445865,-500.0,0.00027945,2]
[311611912,1705265445874,-500.0,0.00027945,2]
[311611915,1705265445883,-500.0,0.00027945,2]
[311611917,1705265445892,-500.0,0.00027945,2]
[311611919,1705265445901,-500.0,0.00027945,2]
[311611921,1705265445911,-661.29,0.00027945,2]
[311611923,1705265445920,-500.0,0.00027945,2]
[311611925,1705265445929,-500.0,0.00027945,2]
[311611927,1705265445938,-500.0,0.00027945,2]
[311611930,1705265445948,-500.0,0.00027945,2]
[311611946,1705265446021,-4550.62,0.00027945,2]
[311611949,1705265446030,-500.0,0.00027945,2]
[311611951,1705265446039,-502.48431119,0.00027945,2]
[311611953,1705265446048,-501.01249999,0.00027945,2]
[311611955,1705265446057,-500.0,0.00027945,2]
[311611957,1705265446066,-1404.93,0.00027945,2]
[311611959,1705265446075,-500.0,0.00027945,2]
[311611961,1705265446084,-500.0,0.00027945,2]
[311611962,1705265446094,-500.0,0.00027945,2]
[311611964,1705265446103,-500.0,0.00027945,2]
[311611966,1705265446112,-500.0,0.00027945,2]
[311611968,1705265446121,-500.0,0.00027945,2]
[311611970,1705265446130,-500.0,0.00027945,2]
[311611971,1705265446139,-500.0,0.00027945,2]
[311611972,1705265446148,-500.0,0.00027945,2]
[311611973,1705265446157,-500.0,0.00027945,2]
[311611974,1705265446166,-500.0,0.00027945,2]
[311611975,1705265446175,-500.0,0.00027945,2]
[311611976,1705265446184,-500.0,0.00027945,2]
[311611977,1705265446194,-1902.59,0.00027945,2]
[311611978,1705265446202,-500.0,0.00027945,2]
[311611979,1705265446212,-230.2463212,0.00027945,2]
[311611980,1705265446221,-2688.55,0.00027945,2]
[311611981,1705265446230,-500.0,0.00027945,2]
[311611982,1705265446240,-753.8,0.00027945,2]
[311611983,1705265446249,-1223.49,0.00027945,2]
[311611984,1705265446258,-500.0,0.00027945,2]
[311611985,1705265446267,-500.0,0.00027945,2]
[311611986,1705265446276,-2781.8,0.00027945,2]
[311611987,1705265446286,-1509.52,0.00027945,2]
[311611988,1705265446295,-500.0,0.00027945,2]
[311611989,1705265446304,-500.0,0.00027945,2]
[311611990,1705265446314,-500.0,0.00027945,2]
[311611991,1705265446323,-986.56,0.00027945,2]
[311611992,1705265446333,-500.0,0.00027945,2]
[311611993,1705265446342,-500.0,0.00027945,2]
[311611994,1705265446352,-500.0,0.00027945,2]
[311611995,1705265446361,-500.0,0.00027945,2]
[311611996,1705265446370,-500.0,0.00027945,2]
[311611997,1705265446380,-500.0,0.00027945,2]
[311611998,1705265446389,-1574.42,0.00027945,2]
[311611999,1705265446399,-500.0,0.00027945,2]
[311612000,1705265446408,-817.78,0.00027945,2]
[311612001,1705265446418,-331.32533185,0.00027945,2]
[311612002,1705265446427,-1229.13,0.00027945,2]
[311612003,1705265446437,-500.0,0.00027945,2]
[311612004,1705265446447,-500.0,0.00027945,2]
[311612005,1705265446457,-789.88,0.00027945,2]
[311612006,1705265446467,-7667.31,0.00027945,2]
[311612007,1705265446476,-630.18856611,0.00027945,2]
[311612009,1705265446485,-500.0,0.00027945,2]
[311612010,1705265446494,-500.0,0.00027945,2]
[311612011,1705265446502,-500.0,0.00027945,2]
[311612013,1705265446512,-199.36649981,0.00027945,2]
[311612015,1705265446521,-1392.78,0.00027945,2]
[311612017,1705265446530,-500.0,0.00027945,2]
[311612019,1705265446539,-500.0,0.00027945,2]
[311612021,1705265446548,-247.37652584,0.00027945,2]
[311612023,1705265446557,-500.0,0.00027945,2]
[311612025,1705265446566,-538.47917633,0.00027945,2]
[311612027,1705265446575,-500.0,0.00027945,2]
[311612029,1705265446584,-1115.33,0.00027945,2]
[311612031,1705265446593,-500.0,0.00027945,2]
[311612033,1705265446602,-1632.39,0.00027945,2]
[311612035,1705265446611,-500.0,0.00027945,2]
[311612037,1705265446620,-500.0,0.00027945,2]
[311612039,1705265446629,-500.0,0.00027945,2]
[311612041,1705265446638,-500.0,0.00027945,2]
[311612043,1705265446647,-500.0,0.00027945,2]
[311612045,1705265446656,-500.0,0.00027945,2]
[311612047,1705265446665,-172.71157866,0.00027945,2]
[311612049,1705265446674,-500.0,0.00027945,2]
[311612051,1705265446683,-500.0,0.00027945,2]
[311612053,1705265446692,-1723.04,0.00027945,2]
[311612055,1705265446701,-1698.92,0.00027945,2]
[311612057,1705265446709,-508.19510463,0.00027945,2]
[311612059,1705265446718,-500.0,0.00027945,2]
[311612061,1705265446727,-500.0,0.00027945,2]
[311612062,1705265446738,-500.0,0.00027945,2]
[311612064,1705265446748,-3330.12,0.00027945,2]
[311612066,1705265446757,-500.0,0.00027945,2]
[311612068,1705265446766,-500.0,0.00027945,2]
[311612070,1705265446775,-880.01,0.00027945,2]
[311612072,1705265446783,-7325.02,0.00027945,2]
[311612074,1705265446793,-500.0,0.00027945,2]
[311612076,1705265446802,-20891.32,0.00027945,2]